bitfinex/quotes_ETHUSD_20250602
["timestamp","ask_amount","ask_price","bid_price","bid_amount"]
[1748855511802,11.20262133,2486.6,2486.4,4.02183831]
[1748855511959,6.83162133,2486.6,2486.4,4.02183831]
[1748855512158,6.83162133,2486.6,2486.0,1.36696791]
[1748855512465,8.0,2486.7,2486.5,4.02161549]
[1748855512659,14.83162133,2486.8,2486.5,4.02161549]
[1748855512856,8.0,2486.7,2486.5,4.02161549]
[1748855513107,6.83162133,2486.8,2486.7,4.02139381]
[1748855513389,6.83162133,2486.8,2486.6,4.02147036]
[1748855513795,6.83162133,2486.8,2486.6,4.02149064]
[1748855514002,6.83162133,2486.8,2486.7,4.02139381]
[1748855514252,8.0,2487.0,2486.8,4.02116099]
[1748855514509,8.0,2487.1,2486.9,4.02099825]
[1748855515803,12.368,2487.1,2486.9,4.02099825]
[1748855516007,8.0,2487.1,2487.0,4.02090872]
[1748855516216,6.83162133,2487.2,2487.1,4.02074705]
[1748855516409,0.74231486,2487.3,2487.2,4.02058539]
[1748855517006,0.74231486,2487.3,2487.1,4.7725448]
[1748855517306,6.83162133,2487.2,2487.0,4.02083776]
[1748855517518,6.83162133,2487.2,2487.1,4.02074705]
[1748855518222,0.74231486,2487.3,2487.2,4.02058539]
[1748855518407,0.4129625,2487.9,2487.7,4.01962642]
[1748855518613,0.01,2487.9,2487.7,4.01962642]
[1748855519324,0.01,2487.9,2487.8,4.01961572]
[1748855520399,0.01,2487.9,2487.7,4.84105803]
[1748855520400,0.01,2487.9,2487.7,0.8213]
[1748855520622,0.01,2487.9,2487.6,4.01993889]
[1748855520923,0.01,2487.9,2487.8,4.01961572]
[1748855521290,0.01,2487.9,2487.8,4.89260776]
[1748855521489,0.01,2487.9,2487.8,6.22024342]
[1748855522090,0.01,2487.9,2487.8,11.52024342]
[1748855522290,0.01,2487.9,2487.8,11.48005138]
[1748855522516,0.01,2487.9,2487.8,19.48005138]
[1748855522849,0.01,2487.9,2487.8,18.93005138]
[1748855522999,0.01,2487.9,2487.8,24.52005138]
[1748855523502,0.01,2487.9,2487.8,24.51905138]
[1748855524132,0.01,2487.9,2487.8,25.06905138]
[1748855524901,0.01,2488.9,2488.8,4.01800064]
[1748855525106,0.01,2488.9,2488.8,5.7198907]
[1748855525305,0.01,2488.9,2488.7,2.0119]
[1748855525505,0.01,2488.9,2488.7,5.23913621]
[1748855526141,0.01,2488.9,2488.8,4.01800064]
[1748855527607,0.01,2488.9,2488.8,4.0581777]
[1748855528403,0.01,2488.9,2488.8,4.01800064]
[1748855528599,0.01,2488.9,2488.8,4.9838875]
[1748855529556,0.01,2488.9,2488.8,5.71201458]
[1748855531042,0.01,2488.9,2488.7,4.01808951]
[1748855531339,0.01,2488.9,2488.8,4.01800064]
[1748855534718,0.01,2488.9,2488.5,1.22]
[1748855534719,0.01,2488.9,2488.7,4.0180821]
[1748855534922,6.83162133,2488.8,2488.7,4.0180821]
[1748855535153,0.01,2488.9,2488.8,4.01800064]
[1748855535315,0.01,2488.9,2488.8,4.82160891]
[1748855536050,0.01,2488.9,2488.8,0.80360827]
[1748855536346,0.01,2488.9,2488.7,4.01812189]
[1748855537435,0.01,2488.9,2488.8,4.05817902]
[1748855537637,0.01,2488.9,2488.8,4.77860064]
[1748855542365,0.01,2488.9,2488.8,6.03676929]
[1748855542566,0.01,2488.9,2488.8,5.99660064]
[1748855542772,0.01,2488.9,2488.8,7.47354022]
[1748855543272,0.01,2488.9,2488.8,7.43337289]
[1748855544941,0.01,2488.9,2488.8,7.47353961]
[1748855545151,0.8177,2488.5,2486.6,0.241]
[1748855545477,6.83162133,2486.8,2486.7,4.0]
[1748855545674,4.83863149,2487.0,2486.7,4.0]
[1748855545839,4.02111847,2486.9,2486.7,4.0]
[1748855546035,4.02120791,2486.9,2486.7,4.0]
[1748855546235,6.87178821,2486.8,2486.1,0.01]
[1748855546478,6.83162133,2486.4,2486.1,0.01]
[1748855546849,7.2324408,2486.6,2486.1,0.01]
[1748855547052,11.29419148,2486.6,2486.1,0.01]
[1748855547249,4.42240327,2486.6,2486.1,0.01]
[1748855547452,0.44098635,2486.6,2486.1,0.01]
[1748855547666,11.09401939,2486.5,2486.1,0.01]
[1748855547852,4.06214515,2486.4,2486.1,0.01]
[1748855548653,0.04016688,2486.4,2486.1,0.01]
[1748855549035,11.09402084,2486.5,2486.1,0.01]
[1748855549263,1.60754832,2486.6,2486.1,0.01]
[1748855549575,10.21236,2486.6,2486.1,0.01]
[1748855549779,4.02176344,2486.5,2486.1,0.01]
[1748855549950,4.06193032,2486.5,2486.1,0.01]
[1748855550585,0.04016688,2486.5,2486.1,0.01]
[1748855550781,4.02188693,2486.4,2486.1,0.01]
[1748855550949,4.06196155,2486.5,2486.1,0.01]
[1748855551686,4.02194798,2486.4,2486.1,0.01]
[1748855551848,4.02189929,2486.4,2486.1,0.01]
[1748855552558,4.0619607,2486.5,2486.1,0.01]
[1748855552762,0.04016688,2486.5,2486.1,0.01]
[1748855553182,4.02192615,2486.4,2486.1,0.01]
[1748855553498,1.02126414,2486.4,2486.1,0.01]
[1748855553650,11.09450467,2486.2,2486.1,0.01]
[1748855555352,23.61650467,2486.2,2486.1,0.01]
[1748855555552,12.02268796,2485.9,2485.8,1.328]
[1748855555773,19.09499008,2485.9,2485.8,1.328]
[1748855555967,4.02309296,2485.7,2485.2,1.328]
[1748855556154,7.112469,2485.6,2485.2,1.328]
[1748855556354,11.13566575,2485.6,2485.2,1.328]
[1748855556555,7.07230212,2485.6,2485.2,1.328]
[1748855556754,7.112469,2485.6,2485.2,1.328]
[1748855557188,11.13568642,2485.6,2485.1,4.03385156]
[1748855557405,12.61136294,2485.6,2485.2,1.328]
[1748855557709,4.02334486,2485.5,2485.2,1.328]
[1748855557916,7.85880212,2485.3,2485.2,1.328]
[1748855558250,7.898969,2485.3,2485.2,1.328]
[1748855558505,9.091224,2485.3,2485.2,1.328]
[1748855558844,9.05105712,2485.3,2485.2,1.328]
[1748855560598,9.4479572,2485.3,2485.2,1.328]
[1748855561102,1.2504,2484.9,2483.5,0.0038458]
[1748855561326,7.07230212,2483.6,2483.5,0.0038458]
[1748855561453,13.2334,2483.6,2483.5,0.0038458]
[1748855561654,8.7004,2483.6,2483.5,0.0038458]
[1748855562102,0.7004,2483.6,2483.5,0.0038458]
[1748855562395,12.76698015,2483.6,2483.5,0.0038458]
[1748855562639,15.63793738,2483.6,2483.5,0.0038458]
[1748855562891,16.03842822,2483.6,2483.5,0.0038458]
[1748855563102,20.61484149,2483.6,2483.5,0.0038458]
[1748855563256,32.30725972,2483.6,2483.5,0.0038458]
[1748855563457,4.02724553,2483.1,2482.5,5.35709482]
[1748855563680,7.07230212,2482.8,2482.5,1.329]
[1748855563896,0.04016688,2482.7,2482.5,1.329]
[1748855564262,0.81786688,2482.7,2482.5,1.329]
[1748855564480,0.04016688,2482.7,2482.4,4.02832844]
[1748855564683,0.04016688,2482.8,2482.5,5.35706767]
[1748855564883,0.04016688,2482.8,2482.6,1.329]
[1748855565300,0.04016688,2482.8,2482.7,1.329]
[1748855565814,4.552,2483.2,2482.7,5.35678266]
[1748855565966,7.01998256,2483.2,2482.7,5.35678266]
[1748855566173,2.46798256,2483.2,2481.3,12.03014548]
[1748855566449,7.07230212,2483.1,2482.8,4.02759017]
[1748855566580,7.07230212,2483.1,2482.7,5.35785681]
[1748855566917,7.07230212,2483.1,2482.7,4.02776932]
[1748855567229,7.07230212,2483.1,2482.7,1.33]
[1748855567230,8.90474059,2483.1,2482.7,1.33]
[1748855567386,0.8122,2482.7,2481.9,0.8179]
[1748855567567,0.8122,2482.7,2479.4,2.07312662]
[1748855567568,0.55,2482.4,2480.1,0.64788324]
[1748855567768,8.38110212,2481.2,2480.3,0.8179]
[1748855567996,8.38110212,2481.2,2480.1,0.40688324]
[1748855567997,0.7588,2481.2,2480.7,4.03103072]
[1748855568181,0.7588,2481.2,2480.1,0.40688324]
[1748855568182,1.33564688,2481.2,2480.3,4.03173378]
[1748855568381,7.83110212,2481.2,2480.6,1.385]
[1748855568581,7.871269,2481.2,2481.1,4.04047035]
[1748855568819,0.8291,2482.1,2481.1,0.01]
[1748855568972,0.8291,2482.1,2481.9,4.02905542]
[1748855569171,7.07230212,2482.3,2481.8,5.41528384]
[1748855569503,7.07230212,2482.4,2481.9,1.386]
[1748855569671,0.8291,2482.5,2482.3,4.02852193]
[1748855569872,7.83010212,2482.9,2482.4,5.41435965]
[1748855570109,7.83010212,2482.9,2482.4,1.386]
[1748855570609,0.7578,2483.3,2482.7,4.02771606]
[1748855570795,7.07230212,2482.8,2481.8,12.8091401]
[1748855571120,7.07230212,2482.8,2482.6,4.02793526]
[1748855571325,7.112469,2483.1,2482.7,1.386]
[1748855571549,7.112469,2483.1,2483.0,4.02738622]
[1748855571692,7.112469,2483.1,2482.7,1.386]
[1748855571693,1.24781021,2483.2,2483.1,4.02722403]
[1748855571896,1.24781021,2483.2,2482.9,4.02743544]
[1748855572122,7.31704671,2483.1,2482.8,1.386]
[1748855572304,0.33539212,2483.0,2482.8,1.386]
[1748855572505,0.33539212,2483.0,2482.9,4.02754843]
[1748855572697,0.8001,2482.8,2482.1,4.02884405]
[1748855572897,0.8001,2482.8,2481.9,1.386]
[1748855572898,7.07230212,2482.5,2481.9,1.386]
[1748855573099,7.07230212,2482.5,2481.3,0.7851]
[1748855573100,0.04016688,2482.4,2481.6,4.02954649]
[1748855573300,0.04016688,2482.4,2481.7,1.386]
[1748855573507,0.04016688,2482.4,2482.0,4.02897244]
[1748855573709,0.04016688,2482.4,2482.0,4.02894191]
[1748855573914,7.07230212,2482.1,2481.6,4.02959394]
[1748855574137,7.07230212,2481.8,2481.5,4.02969831]
[1748855574343,0.04016688,2481.7,2481.5,1.386]
[1748855574506,8.04016688,2481.7,2481.5,1.386]
[1748855574706,4.85460681,2482.3,2481.5,1.386]
[1748855574907,4.85460681,2482.3,2481.8,4.02924133]
[1748855574908,0.04016688,2482.2,2481.8,4.02924133]
[1748855575129,0.04016688,2482.2,2481.5,4.02976604]
[1748855575434,0.04016688,2482.2,2482.0,4.02900295]
[1748855575635,0.04016688,2482.2,2481.9,4.02909628]
[1748855576358,0.04016688,2482.2,2481.8,1.386]
[1748855576660,1.3154224,2482.2,2481.8,5.41529657]
[1748855576957,1.3154224,2482.2,2482.0,4.02899098]
[1748855576958,0.04016688,2482.2,2482.0,4.02899098]
[1748855577105,0.04016688,2482.2,2481.2,8.0]
[1748855577305,5.4467,2482.1,2481.7,4.02940676]
[1748855577545,0.04016688,2482.0,2481.1,4.04038866]
[1748855577786,0.04016688,2482.0,2481.2,0.04029624]
[1748855577906,0.04016688,2482.0,2481.8,4.02918561]
[1748855578328,0.04016688,2482.0,2481.3,5.4171018]
[1748855578329,0.04016688,2482.0,2481.7,4.02943191]
[1748855578528,0.04016688,2482.0,2481.8,4.02928451]
[1748855578806,0.04016688,2482.2,2481.3,1.387]
[1748855579043,0.04016688,2482.2,2482.0,4.02885369]
[1748855579244,0.04016688,2482.2,2481.8,4.02932179]
[1748855579443,9.40853199,2482.2,2481.5,4.0296844]
[1748855579642,4.02895498,2482.1,2481.6,1.387]
[1748855579948,4.02895498,2482.1,2481.1,0.01]
[1748855579949,0.04016688,2482.0,2481.1,0.01]
[1748855580106,0.04016688,2482.0,2481.7,1.387]
[1748855580305,4.06930666,2482.0,2481.8,1.387]
[1748855580624,4.02924746,2481.9,2481.8,1.387]
[1748855580816,0.04016688,2481.9,2481.1,0.01]
[1748855581017,4.06934735,2481.9,2481.3,4.03005496]
[1748855581223,4.06934735,2481.9,2481.2,4.03026459]
[1748855581224,4.02933415,2481.8,2481.2,4.03026459]
[1748855581450,4.85222501,2481.6,2481.1,0.01]
[1748855581748,0.04016688,2481.5,2481.2,1.387]
[1748855582053,4.03013391,2481.4,2481.1,0.01]
[1748855582343,0.04016688,2481.3,2481.2,1.387]
[1748855582545,0.04016688,2481.5,2481.2,1.387]
[1748855582750,8.04016688,2481.9,2481.5,4.02970523]
[1748855582948,0.04016688,2481.9,2481.7,4.02949591]
[1748855583114,0.04016688,2481.9,2481.3,1.387]
[1748855583311,0.04016688,2481.9,2481.3,4.03004187]
[1748855583519,0.04016688,2481.9,2481.4,1.387]
[1748855583758,0.04016688,2481.9,2481.5,4.02966044]
[1748855584063,0.04016688,2481.9,2481.6,4.02952016]
[1748855584257,0.04016688,2482.0,2481.4,2.1921]
[1748855584552,0.7924,2482.4,2482.1,4.02871096]
[1748855584712,0.7924,2482.4,2482.2,1.387]
[1748855584914,0.04016688,2482.3,2482.2,1.387]
[1748855586576,0.761,2482.8,2482.3,4.02852193]
[1748855586768,7.07230212,2483.2,2482.9,4.02754843]
[1748855586769,0.04016688,2483.1,2482.9,4.02754843]
[1748855586971,0.04016688,2483.1,2481.5,4.02982067]
[1748855586972,0.761,2482.9,2481.5,4.02982067]
[1748855587182,7.07230212,2482.7,2482.3,4.02843192]
[1748855587329,0.04016688,2482.8,2482.4,4.02835224]
[1748855587667,6.05806854,2482.8,2482.5,1.438]
[1748855587852,4.02789577,2482.7,2482.5,1.438]
[1748855588058,0.04016688,2482.6,2482.5,1.438]
[1748855588366,0.04016688,2482.7,2482.5,1.438]
[1748855589370,0.04016688,2482.8,2482.5,1.438]
[1748855589533,0.04016688,2482.9,2482.5,5.46605851]
[1748855589728,0.04016688,2482.9,2481.9,4.02901147]
[1748855589729,4.02831153,2482.5,2481.9,4.02901147]
[1748855590042,4.02831153,2482.5,2481.8,5.46728742]
[1748855590043,0.04016688,2482.4,2482.0,4.02895421]
[1748855590384,4.06857137,2482.4,2481.9,4.02908467]
[1748855590605,0.04016688,2482.4,2482.0,4.02890229]
[1748855590901,0.04016688,2482.4,2481.8,5.46728212]
[1748855591054,0.04016688,2482.6,2482.0,4.02892655]
[1748855591254,6.53279666,2482.6,2482.0,4.02892655]
[1748855591453,6.53279666,2482.6,2482.0,4.02900886]
[1748855591654,4.02821399,2482.5,2482.0,4.02900886]
[1748855591857,0.04016688,2482.4,2482.1,4.02879388]
[1748855592107,0.04016688,2482.4,2482.1,4.02878155]
[1748855592390,0.04016688,2482.5,2481.8,1.438]
[1748855592585,0.7833,2481.8,2480.8,1.438]
[1748855592786,0.04016688,2481.7,2480.8,1.438]
[1748855593008,7.07230212,2481.6,2480.8,1.438]
[1748855593178,4.03007784,2481.4,2480.8,1.438]
[1748855593378,0.04016688,2481.3,2480.8,5.46883247]
[1748855593583,4.07031236,2481.3,2481.2,1.438]
[1748855593783,0.04016688,2481.3,2481.2,1.438]
[1748855593989,4.07031236,2481.3,2481.2,1.438]
[1748855594211,0.04016688,2481.3,2480.4,0.7921]
[1748855594508,4.03012691,2481.4,2480.9,1.438]
[1748855594667,0.04016688,2481.3,2480.9,1.438]
[1748855595000,0.04016688,2481.3,2480.7,4.03099555]
[1748855595001,4.03030791,2481.2,2480.7,4.03099555]
[1748855595307,4.07033254,2481.3,2480.8,4.03094201]
[1748855595509,4.81360791,2481.2,2481.1,1.448]
[1748855595810,5.62363949,2481.2,2481.1,0.01]
[1748855596027,1.63349846,2481.2,2481.1,0.01]
[1748855596209,0.04016688,2481.3,2481.1,0.01]
[1748855596587,4.03030791,2481.2,2481.1,0.01]
[1748855596885,4.82316688,2481.3,2481.1,0.01]
[1748855597084,7.62675613,2481.3,2481.1,0.01]
[1748855597281,2.47007009,2481.3,2481.1,0.01]
[1748855597483,24.63801003,2481.2,2481.1,0.01]
[1748855597817,13.15830127,2481.2,2481.1,0.01]
[1748855598018,20.23060339,2481.2,2481.1,0.01]
[1748855598238,0.55,2481.1,2480.1,0.01]
[1748855598534,0.7544,2480.8,2480.1,0.01]
[1748855598669,0.91560688,2480.7,2480.1,4.04209168]
[1748855598868,0.04016688,2480.7,2480.2,4.0319329]
[1748855599119,0.04016688,2480.7,2480.1,0.01]
[1748855599426,0.04016688,2480.7,2480.5,4.03139935]
[1748855599573,0.04016688,2480.7,2480.6,1.505]
[1748855599905,0.04016688,2481.1,2480.8,4.0309397]
[1748855600090,0.04016688,2481.1,2481.0,4.0306328]
[1748855600433,0.04016688,2481.5,2480.6,1.54530718]
[1748855600612,0.04016688,2481.5,2481.2,4.03021319]
[1748855600774,0.04016688,2481.5,2481.4,4.02998307]
[1748855601093,0.7544,2481.6,2481.4,4.02988703]
[1748855601278,0.7544,2481.6,2481.5,1.505]
[1748855601890,0.04016688,2481.8,2481.5,1.505]
[1748855602093,1.22976431,2481.8,2481.5,1.505]
[1748855602503,0.375559,2481.8,2481.6,4.02955761]
[1748855602819,0.33539212,2481.7,2481.5,1.505]
[1748855603117,0.33539212,2481.7,2481.5,5.53475083]
[1748855603319,0.33539212,2481.7,2481.5,1.505]
[1748855603478,0.33539212,2481.7,2481.6,4.02965828]
[1748855604124,0.04016688,2482.0,2481.5,1.505]
[1748855604332,0.04016688,2482.1,2482.0,4.02900886]
[1748855604535,4.02979134,2481.6,2480.6,4.03128275]
[1748855604744,15.9774024,2482.1,2480.9,4.03065306]
[1748855604745,7.88590212,2481.3,2480.9,4.03065306]
[1748855605032,0.04016688,2481.2,2480.6,1.506]
[1748855605194,0.04016688,2481.2,2480.8,4.0308682]
[1748855605597,0.04016688,2481.2,2480.8,4.03085195]
[1748855605898,0.04016688,2481.2,2480.9,4.03078431]
[1748855606344,0.04016688,2481.2,2480.8,4.03092369]
[1748855606494,0.04016688,2481.2,2480.8,4.03086167]
[1748855606703,0.4670923,2481.9,2480.9,5.6365]
[1748855606916,0.4670923,2481.9,2481.1,4.03047035]
[1748855607212,7.07230212,2482.0,2481.5,4.02971827]
[1748855607526,4.02974877,2481.6,2481.0,4.0306328]
[1748855607696,4.02974877,2481.6,2480.9,0.7805]
[1748855607697,4.02965875,2481.6,2481.1,1.505]
[1748855607898,7.07230212,2481.7,2481.1,5.53543557]
[1748855608099,4.029739,2481.6,2481.2,1.505]
[1748855608335,7.07230212,2481.7,2481.0,4.03050153]
[1748855608556,1.67334363,2481.6,2480.6,9.5122]
[1748855608754,1.67334363,2481.6,2481.1,1.505]
[1748855608755,4.02997287,2481.5,2481.1,1.505]
[1748855609240,1.67334363,2481.6,2481.2,1.505]
[1748855609398,5.70307893,2481.6,2481.2,1.505]
[1748855609600,1.68048778,2481.5,2481.2,1.505]
[1748855609942,1.67334363,2481.6,2481.2,1.505]
[1748855610125,1.67334363,2481.6,2481.1,4.03033211]
[1748855610326,1.67334363,2481.6,2481.3,1.505]
[1748855610528,4.02990869,2481.5,2481.3,1.505]
[1748855610734,7.07230212,2481.4,2480.7,4.854]
[1748855610912,7.07230212,2481.4,2480.8,4.03085306]
[1748855610913,4.03026066,2481.3,2480.8,4.03085306]
[1748855611242,4.03019625,2481.3,2480.9,1.506]
[1748855611442,7.9468667,2481.4,2480.9,1.506]
[1748855611748,4.78081216,2481.1,2481.0,1.506]
[1748855611948,4.78067035,2481.1,2481.0,1.506]
[1748855612129,4.0306547,2481.0,2480.5,4.03138765]
[1748855612446,12.7325898,2481.1,2480.6,4.03127959]
[1748855612650,8.70204017,2481.1,2480.7,4.03111896]
[1748855612852,12.73259565,2481.1,2480.4,4.03155705]
[1748855613015,12.73252658,2481.1,2480.4,4.03148027]
[1748855613207,1.27325266,2481.0,2480.6,4.03118369]
[1748855613404,1.27325266,2481.0,2480.5,5.53734541]
[1748855613601,1.27325266,2481.0,2480.4,4.03156255]
[1748855613602,5.30389152,2481.0,2480.6,1.506]
[1748855613837,1.27325266,2481.0,2480.7,1.506]
[1748855614039,1.27325266,2481.0,2480.7,5.53710966]
[1748855614215,1.62926458,2481.4,2480.7,1.506]
[1748855614542,4.43700549,2482.4,2481.1,4.03043467]
[1748855614543,8.0,2481.5,2481.1,4.03043467]
[1748855614840,8.0,2481.5,2480.8,4.03095775]
[1748855615044,4.03000345,2481.4,2480.9,4.03070313]
[1748855615339,4.03006099,2481.4,2480.9,4.03067586]
[1748855615546,7.82700212,2481.7,2481.0,1.506]
[1748855615839,12.6392376,2481.7,2480.7,4.03110944]
[1748855616041,8.60970233,2481.7,2481.0,4.0306328]
[1748855616263,0.8078,2482.0,2480.8,1.54630334]
[1748855616478,0.8078,2482.3,2481.5,4.02977927]
[1748855616757,0.8078,2482.3,2480.8,1.506]
[1748855616758,4.0303877,2481.2,2481.0,1.506]
[1748855617050,7.07230212,2481.1,2480.3,0.8087]
[1748855617205,11.10283271,2481.1,2480.5,4.03137011]
[1748855617410,4.03064641,2481.0,2480.4,4.03151762]
[1748855617610,11.10359174,2480.6,2480.2,8.706]
[1748855617847,7.07230212,2480.6,2480.3,1.506]
[1748855618246,0.8,2480.8,2480.5,4.03134312]
[1748855618445,7.84550212,2480.9,2480.3,1.506]
[1748855618821,7.84550212,2480.9,2480.3,4.03175476]
[1748855619122,10.06722214,2480.9,2480.4,1.506]
[1748855619320,0.7732,2480.9,2480.4,5.53751239]
[1748855619507,24.35930179,2481.1,2480.4,5.53757321]
[1748855619707,24.35930179,2481.1,2480.6,4.03126098]
[1748855620218,7.47770534,2481.1,2480.4,1.506]
[1748855620553,4.03080413,2480.9,2480.4,5.53751293]
[1748855620707,4.03074209,2481.0,2480.5,4.0314164]
[1748855621036,5.66194379,2481.0,2480.5,4.0314164]
[1748855621218,1.6312017,2481.0,2480.6,1.506]
[1748855621422,5.66191446,2481.0,2480.6,1.506]
[1748855621625,1.6312017,2481.0,2480.6,5.53718247]
[1748855621833,7.47770534,2481.1,2480.7,4.03106162]
[1748855622045,7.07230212,2481.1,2480.7,4.03112024]
[1748855622247,0.7732,2481.2,2480.8,4.03087927]
[1748855622449,4.02984079,2481.5,2480.8,4.03087927]
[1748855622450,4.80271639,2481.5,2480.8,4.03090168]
[1748855622744,4.80271967,2481.5,2481.0,4.03057744]
[1748855623050,0.46854304,2481.9,2481.2,4.03030791]
[1748855623280,0.46854304,2481.9,2480.1,0.01]
[1748855623281,7.86710212,2481.8,2480.1,0.01]
[1748855623413,7.07230212,2481.2,2480.8,4.03095111]
[1748855623613,7.07230212,2481.2,2480.7,4.03096777]
[1748855623813,4.03078126,2481.0,2480.4,4.03150616]
[1748855624013,4.82535889,2481.1,2480.5,4.03144527]
[1748855624328,4.82535889,2481.1,2480.6,4.03127569]
[1748855624750,0.8,2481.0,2480.7,1.506]
[1748855625119,4.83067993,2481.0,2480.8,1.506]
[1748855625320,0.8,2481.0,2480.8,1.506]
[1748855625535,4.83064776,2481.0,2480.5,4.03129571]
[1748855625750,0.8,2481.0,2480.6,1.506]
[1748855625919,0.8,2481.0,2480.8,4.0308501]
[1748855626117,4.85955531,2481.4,2480.9,4.03075484]
[1748855626322,5.22344432,2481.3,2480.8,4.03089981]
[1748855626539,5.22344432,2481.3,2480.7,4.03103682]
[1748855626540,11.10262729,2481.2,2480.7,4.03103682]
[1748855626746,7.07230212,2481.2,2480.9,4.03070815]
[1748855626948,7.07230212,2481.2,2480.8,4.0308983]
[1748855627135,4.03050397,2481.1,2480.9,1.506]
[1748855627346,11.10269773,2481.2,2480.9,1.506]
[1748855627572,12.81824686,2481.2,2480.9,1.506]
[1748855627750,1.71554913,2481.2,2480.9,1.506]
[1748855628082,0.8295,2481.4,2480.9,1.506]
[1748855628282,11.10204211,2481.6,2481.1,4.03038398]
[1748855628789,0.8086,2481.7,2480.9,10.36465138]
[1748855628949,11.72487151,2481.8,2481.3,4.0300353]
[1748855629154,4.02967085,2481.6,2481.1,4.03037837]
[1748855629347,4.82967085,2481.6,2481.1,4.03037837]
[1748855629547,4.02958571,2481.7,2481.2,5.53523765]
[1748855629780,7.07230212,2481.6,2481.2,1.505]
[1748855630081,4.65258495,2481.8,2481.3,0.8201]
[1748855630267,1.87368727,2481.8,2481.4,5.53497539]
[1748855630456,1.25050871,2481.8,2481.4,5.53497539]
[1748855630635,1.25050871,2481.8,2481.5,4.02980012]
[1748855630834,1.25050871,2481.8,2481.4,1.505]
[1748855631035,1.25050871,2481.8,2481.5,1.505]
[1748855631036,4.02965828,2481.6,2481.5,1.505]
[1748855631238,4.02965828,2481.6,2481.0,4.03053948]
[1748855631239,4.02985585,2481.5,2481.0,4.03053948]
[1748855631750,8.30754903,2481.6,2481.2,4.03028129]
[1748855632151,8.30754903,2481.6,2480.9,0.7712]
[1748855632354,7.07230212,2481.9,2480.9,0.7712]
[1748855632549,4.02918907,2481.9,2481.4,4.02986692]
[1748855632750,11.10149119,2481.9,2481.4,4.02986692]
[1748855632959,4.02924253,2481.9,2481.4,4.02986692]
[1748855633282,7.07230212,2481.8,2481.5,4.02971704]
[1748855633573,12.36897151,2481.8,2481.6,1.505]
[1748855633882,8.33962416,2481.8,2481.6,1.505]
[1748855634091,7.07230212,2482.1,2481.6,1.505]
[1748855634291,0.7711,2482.3,2481.9,4.02908265]
[1748855634461,7.07230212,2482.3,2482.0,4.02887426]
[1748855634666,7.07230212,2482.3,2482.0,4.02900759]
[1748855634876,12.21091992,2482.3,2481.8,4.02924881]
[1748855635185,7.07230212,2482.2,2481.9,5.53409862]
[1748855635360,7.07230212,2482.2,2481.9,1.505]
[1748855635561,11.10106777,2482.2,2482.0,1.505]
[1748855635783,7.07230212,2482.2,2482.0,1.505]
[1748855636088,8.29339401,2482.2,2482.0,1.505]
[1748855637486,7.07230212,2482.2,2482.1,4.02884654]
[1748855637693,7.07230212,2482.5,2482.1,4.02873038]
[1748855638054,4.02836714,2482.4,2482.0,1.505]
[1748855638256,4.02836714,2482.4,2482.1,1.505]
[1748855638257,7.07230212,2482.2,2482.1,1.505]
[1748855638456,8.18237665,2482.2,2481.8,4.02924193]
[1748855638893,8.18237665,2482.2,2481.9,1.505]
[1748855639096,8.18237665,2482.2,2481.8,4.02924193]
[1748855639257,8.18237665,2482.2,2481.5,4.82159598]
[1748855639587,7.07230212,2482.2,2482.0,4.02891008]
[1748855639757,7.07230212,2482.2,2481.7,4.02948223]
[1748855639958,7.07230212,2482.2,2481.5,0.7918]
[1748855639959,7.07230212,2482.2,2481.9,4.02910203]
[1748855640154,7.07230212,2482.2,2482.0,1.505]
[1748855640498,7.07230212,2482.2,2482.1,1.505]
[1748855640690,7.07230212,2482.2,2482.1,5.53384654]
[1748855640888,7.07230212,2482.5,2482.2,4.02866976]
[1748855641054,1.25918283,2482.4,2482.1,1.505]
[1748855641255,1.25918283,2482.4,2482.1,5.53384004]
[1748855641583,7.07230212,2482.2,2482.1,5.53384004]
[1748855641808,7.07230212,2482.2,2482.1,4.02884004]
[1748855641978,7.07230212,2482.2,2482.1,1.505]
[1748855642179,7.07230212,2482.2,2481.8,4.02918266]
[1748855642513,7.07230212,2482.2,2481.7,1.505]
[1748855642514,7.07230212,2481.9,2481.7,1.505]
[1748855642810,7.07230212,2481.9,2481.1,4.0304556]
[1748855642811,4.02987569,2481.5,2480.3,4.03174606]
[1748855643010,7.07230212,2481.3,2480.6,4.03121201]
[1748855643197,7.07230212,2481.3,2481.0,4.03049342]
[1748855643376,7.07230212,2481.3,2481.2,4.03030791]
[1748855643577,7.07230212,2481.6,2481.1,4.0303704]
[1748855643889,7.07230212,2481.6,2481.2,4.03022526]
[1748855644182,9.3854258,2481.6,2481.3,1.505]
[1748855644623,9.3854258,2481.6,2481.3,5.53505264]
[1748855645211,6.8611252,2481.4,2481.3,5.53505264]
[1748855645910,6.8611252,2481.6,2481.3,1.505]
[1748855646207,6.8611252,2481.6,2481.3,5.53505855]
[1748855646510,7.6611252,2481.6,2481.4,4.02994475]
[1748855646833,7.6611252,2481.6,2481.3,5.53505855]
[1748855646834,6.8611252,2481.6,2481.3,5.53511389]
[1748855647037,6.8611252,2481.6,2481.3,1.505]
[1748855647404,6.8611252,2481.6,2481.3,5.53504476]
[1748855647833,6.8611252,2481.6,2481.4,1.452]
[1748855648000,6.8611252,2481.6,2481.5,4.02982067]
[1748855648204,6.8611252,2481.6,2481.4,1.452]
[1748855648401,8.0,2481.9,2481.4,1.452]
[1748855648709,8.0,2482.0,2481.4,1.452]
[1748855648910,6.8611252,2481.8,2481.4,1.452]
[1748855649241,10.89057489,2481.8,2481.4,1.452]
[1748855649639,6.8611252,2481.8,2481.4,5.48197947]
[1748855649939,6.8611252,2481.8,2481.5,4.02979106]
[1748855650243,11.57665549,2481.8,2481.6,1.452]
[1748855650447,6.8611252,2481.7,2481.6,1.452]
[1748855650766,6.8611252,2482.0,2481.7,4.02937529]
[1748855650899,0.46812518,2482.4,2481.6,1.452]
[1748855650900,0.8239,2482.4,2482.0,4.02900246]
[1748855651107,6.8611252,2482.2,2482.0,4.02887963]
[1748855651329,6.8611252,2482.2,2482.0,4.02890912]
[1748855651724,6.8611252,2482.2,2482.1,4.02884654]
[1748855652302,0.8239,2482.7,2481.9,4.73]
[1748855652624,0.8239,2482.7,2481.8,4.02928038]